[Event "GrandPrix_29.05"]
[Site "Chess.com"]
[Date "2020.05.29"]
[Round "6"]
[White "bsnsun"]
[Black "XeresLt"]
[Result "0-1"]
[WhiteElo "1951"]
[BlackElo "1925"]
[TimeControl "600+2"]
[EndTime "12:02:26 PDT"]
[Termination "XeresLt won by resignation"]

1. Nf3 {[%clk 0:10:01.9]} 1... Nf6 {[%clk 0:10:00.5]} 2. c4 {[%clk 0:10:02.3]}
2... g6 {[%clk 0:10:01.8]} 3. g3 {[%clk 0:10:03.5]} 3... Bg7 {[%clk 0:10:03.2]}
4. d4 {[%clk 0:10:04.8]} 4... O-O {[%clk 0:10:05.1]} 5. Bg2 {[%clk 0:10:05.9]}
5... d6 {[%clk 0:10:06.7]} 6. Nc3 {[%clk 0:10:06.8]} 6... a6 {[%clk 0:10:08]} 7.
O-O {[%clk 0:10:07.3]} 7... Nbd7 {[%clk 0:10:09.3]} 8. h3 {[%clk 0:10:06.7]}
8... c5 {[%clk 0:10:10]} 9. e4 {[%clk 0:10:04.1]} 9... cxd4 {[%clk 0:10:10.8]}
10. Nxd4 {[%clk 0:10:05]} 10... Nc5 {[%clk 0:10:12.7]} 11. Be3 {[%clk 0:10:02]}
11... Bd7 {[%clk 0:10:13.6]} 12. b4 {[%clk 0:09:34.1]} 12... Ne6 {[%clk
0:10:12.4]} 13. a4 {[%clk 0:09:34.4]} 13... Rc8 {[%clk 0:10:12.4]} 14. Qe2
{[%clk 0:08:58.5]} 14... Qc7 {[%clk 0:09:13]} 15. Rac1 {[%clk 0:07:43.1]} 15...
Nxd4 {[%clk 0:08:47.9]} 16. Bxd4 {[%clk 0:07:43.3]} 16... Qxc4 {[%clk
0:08:46.9]} 17. Qxc4 {[%clk 0:06:04.6]} 17... Rxc4 {[%clk 0:08:46]} 18. Bxf6
{[%clk 0:06:05.7]} 18... Bxf6 {[%clk 0:08:44.3]} 19. Nd5 {[%clk 0:06:07]} 19...
Rfc8 {[%clk 0:08:26.5]} 20. Rxc4 {[%clk 0:05:55.4]} 20... Rxc4 {[%clk
0:08:26.1]} 21. Nb6 {[%clk 0:05:53.3]} 21... Rc7 {[%clk 0:08:21]} 22. Nxd7
{[%clk 0:05:49]} 22... Rxd7 {[%clk 0:08:21.6]} 23. Rc1 {[%clk 0:05:50.5]} 23...
e6 {[%clk 0:07:29.9]} 24. Kf1 {[%clk 0:05:35.2]} 24... d5 {[%clk 0:07:25.2]} 25.
exd5 {[%clk 0:05:29.3]} 25... exd5 {[%clk 0:07:26.5]} 26. Ke2 {[%clk 0:05:29.9]}
26... Be7 {[%clk 0:07:26.6]} 27. b5 {[%clk 0:05:19.8]} 27... axb5 {[%clk
0:07:23.9]} 28. axb5 {[%clk 0:05:20.6]} 28... b6 {[%clk 0:07:24.7]} 29. Rd1
{[%clk 0:04:35.4]} 29... d4 {[%clk 0:07:23.7]} 30. Bc6 {[%clk 0:04:36]} 30...
Rd8 {[%clk 0:07:22.5]} 31. Kd3 {[%clk 0:04:35.7]} 31... Bc5 {[%clk 0:07:21.8]}
32. Ra1 {[%clk 0:04:30.3]} 32... Kg7 {[%clk 0:07:08.3]} 33. Ra7 {[%clk
0:04:30.7]} 33... g5 {[%clk 0:07:02.8]} 34. Rd7 {[%clk 0:04:04.7]} 34... Rf8
{[%clk 0:06:13.5]} 35. Bd5 {[%clk 0:04:04]} 35... h5 {[%clk 0:06:11.1]} 36. g4
{[%clk 0:03:59.5]} 36... h4 {[%clk 0:06:10.1]} 37. Ke4 {[%clk 0:03:33.3]} 37...
Kf6 {[%clk 0:06:04]} 38. Kd3 {[%clk 0:03:33.6]} 38... Kg6 {[%clk 0:05:04.9]} 39.
Be4+ {[%clk 0:03:34.5]} 39... Kf6 {[%clk 0:04:58]} 40. Bd5 {[%clk 0:03:17.1]}
40... Ke5 {[%clk 0:04:34.3]} 41. Be4 {[%clk 0:03:02.7]} 41... Bd6 {[%clk
0:04:01]} 42. Bc6 {[%clk 0:02:03.3]} 42... f5 {[%clk 0:03:53.6]} 43. Rg7 {[%clk
0:01:36.6]} 43... Kf4 {[%clk 0:03:34.5]} 44. Rg6 {[%clk 0:01:32.9]} 44... Bc5
{[%clk 0:03:22.5]} 45. Re6 {[%clk 0:01:21.5]} 45... Rf7 {[%clk 0:03:21]} 46. Be8
{[%clk 0:01:04.7]} 46... Ra7 {[%clk 0:03:18.3]} 47. Rf6 {[%clk 0:01:02.4]} 47...
Ra3+ {[%clk 0:03:18.4]} 48. Kc4 {[%clk 0:00:57.1]} 48... Rxh3 {[%clk 0:03:01.2]}
49. Rxf5+ {[%clk 0:00:46]} 49... Kxg4 {[%clk 0:03:00.7]} 50. Bd7 {[%clk
0:00:33.8]} 50... Rc3+ {[%clk 0:02:59.9]} 51. Kd5 {[%clk 0:00:35]} 51... Kh5
{[%clk 0:02:30.6]} 52. f4 {[%clk 0:00:35.7]} 52... Rg3 {[%clk 0:02:22.8]} 53.
Be8+ {[%clk 0:00:36.1]} 53... Kh6 {[%clk 0:02:22.4]} 54. Rf6+ {[%clk 0:00:34.3]}
54... Kh7 {[%clk 0:02:23]} 55. f5 {[%clk 0:00:30.6]} 55... d3 {[%clk 0:02:11.9]}
56. Rf7+ {[%clk 0:00:30.1]} 56... Kg8 {[%clk 0:02:12.9]} 57. Rd7 {[%clk
0:00:30.3]} 57... h3 {[%clk 0:02:05.6]} 58. Ke6 {[%clk 0:00:22.8]} 58... Re3+
{[%clk 0:01:59.6]} 59. Kf6 {[%clk 0:00:21.6]} 59... Rxe8 {[%clk 0:01:59.1]} 60.
Rxd3 {[%clk 0:00:21.8]} 60... g4 {[%clk 0:01:41.9]} 61. Rg3 {[%clk 0:00:22]}
61... h2 {[%clk 0:01:40.5]} 62. Rxg4+ {[%clk 0:00:22.7]} 62... Kf8 {[%clk
0:01:41.9]} 63. Rh4 {[%clk 0:00:23.5]} 63... Be7+ {[%clk 0:01:42.7]} 64. Kg6
{[%clk 0:00:24.6]} 64... Bxh4 {[%clk 0:01:43.9]} 65. f6 {[%clk 0:00:25.3]} 65...
h1=Q {[%clk 0:01:43.2]} 0-1

[Event "GrandPrix_29.05"]
[Site "Chess.com"]
[Date "2020.05.29"]
[Round "6"]
[White "kotmizer"]
[Black "JonahWillow"]
[Result "1-0"]
[WhiteElo "2273"]
[BlackElo "2229"]
[TimeControl "600+2"]
[EndTime "12:02:38 PDT"]
[Termination "kotmizer won on time"]

1. e4 {[%clk 0:10:01.9]} 1... c5 {[%clk 0:08:57.7]} 2. Nf3 {[%clk 0:09:59.8]}
2... Nc6 {[%clk 0:08:58.7]} 3. Nc3 {[%clk 0:09:58]} 3... g6 {[%clk 0:08:58.5]}
4. d4 {[%clk 0:09:58.6]} 4... cxd4 {[%clk 0:09:00.4]} 5. Nxd4 {[%clk 0:09:59.8]}
5... Bg7 {[%clk 0:09:01.5]} 6. Be3 {[%clk 0:09:59.8]} 6... Nf6 {[%clk
0:09:02.9]} 7. f4 {[%clk 0:09:56.4]} 7... d6 {[%clk 0:08:58.1]} 8. h3 {[%clk
0:09:53.9]} 8... O-O {[%clk 0:08:49.1]} 9. Qf3 {[%clk 0:09:53.5]} 9... Qa5
{[%clk 0:08:29]} 10. O-O-O {[%clk 0:09:38.9]} 10... Nxd4 {[%clk 0:08:02.8]} 11.
Bxd4 {[%clk 0:09:35.8]} 11... Be6 {[%clk 0:08:04.7]} 12. a3 {[%clk 0:09:33.2]}
12... a6 {[%clk 0:07:55.4]} 13. Qe3 {[%clk 0:09:21.7]} 13... Qc7 {[%clk
0:07:46]} 14. g4 {[%clk 0:09:05.3]} 14... b5 {[%clk 0:07:40.3]} 15. f5 {[%clk
0:08:54.8]} 15... Bc4 {[%clk 0:07:37.3]} 16. g5 {[%clk 0:08:52.5]} 16... Nh5
{[%clk 0:07:30.3]} 17. Bxg7 {[%clk 0:08:50.5]} 17... Kxg7 {[%clk 0:07:16.4]} 18.
Bg2 {[%clk 0:08:38.9]} 18... Rac8 {[%clk 0:07:11.4]} 19. Bf3 {[%clk 0:08:36.8]}
19... a5 {[%clk 0:06:05.8]} 20. f6+ {[%clk 0:08:18.1]} 20... Kh8 {[%clk
0:05:48.3]} 21. Bxh5 {[%clk 0:08:18.3]} 21... gxh5 {[%clk 0:05:49.7]} 22. Qd4
{[%clk 0:07:32.2]} 22... exf6 {[%clk 0:05:41.9]} 23. Qxf6+ {[%clk 0:07:25]}
23... Kg8 {[%clk 0:05:43]} 24. Qxd6 {[%clk 0:07:14.8]} 24... Qxd6 {[%clk
0:05:10.3]} 25. Rxd6 {[%clk 0:07:14.2]} 25... b4 {[%clk 0:05:11.2]} 26. axb4
{[%clk 0:07:12]} 26... axb4 {[%clk 0:05:13.1]} 27. Nd1 {[%clk 0:07:12.9]} 27...
Rc5 {[%clk 0:05:06.1]} 28. Ne3 {[%clk 0:07:07.5]} 28... Rfc8 {[%clk 0:05:02.9]}
29. Nf5 {[%clk 0:06:56.3]} 29... Kf8 {[%clk 0:04:35]} 30. Rhd1 {[%clk
0:06:53.3]} 30... Ke8 {[%clk 0:04:26.9]} 31. Rb6 {[%clk 0:06:49.9]} 31... Kf8
{[%clk 0:03:44.7]} 32. Nd6 {[%clk 0:06:28.3]} 32... Ra8 {[%clk 0:03:17.9]} 33.
Rxb4 {[%clk 0:06:01.7]} 33... Be6 {[%clk 0:03:00.4]} 34. h4 {[%clk 0:05:57.2]}
34... Bg4 {[%clk 0:03:01.4]} 35. Re1 {[%clk 0:05:56.4]} 35... Ra1+ {[%clk
0:02:50.4]} 36. Kd2 {[%clk 0:05:56.7]} 36... Rxe1 {[%clk 0:02:49]} 37. Kxe1
{[%clk 0:05:57.5]} 37... Rxc2 {[%clk 0:02:50.9]} 38. Nf5 {[%clk 0:05:41.2]}
38... Ke8 {[%clk 0:02:10.6]} 39. Rb8+ {[%clk 0:04:59.6]} 39... Kd7 {[%clk
0:02:10.7]} 40. Rb7+ {[%clk 0:05:00.7]} 40... Kd8 {[%clk 0:01:29]} 41. Nd6
{[%clk 0:04:42.3]} 41... Be6 {[%clk 0:00:22.7]} 42. Nxf7+ {[%clk 0:04:39.8]}
42... Bxf7 {[%clk 0:00:24.6]} 43. Rxf7 {[%clk 0:04:39.9]} 43... Rh2 {[%clk
0:00:26.5]} 44. Rxh7 {[%clk 0:04:36.4]} 44... Rxh4 {[%clk 0:00:27.4]} 45. Kd2
{[%clk 0:04:31.7]} 45... Rxe4 {[%clk 0:00:22.7]} 46. Rxh5 {[%clk 0:04:23.3]}
46... Rg4 {[%clk 0:00:21.8]} 47. Kc3 {[%clk 0:04:24.2]} 47... Kc7 {[%clk
0:00:21]} 48. b4 {[%clk 0:04:25]} 48... Kb6 {[%clk 0:00:19.1]} 49. Kd3 {[%clk
0:02:56.5]} 49... Rxb4 {[%clk 0:00:16.5]} 50. Ke3 {[%clk 0:02:51.4]} 50... Rg4
{[%clk 0:00:10.6]} 51. Kf3 {[%clk 0:02:52.4]} 51... Rg1 {[%clk 0:00:11.5]} 52.
Kf4 {[%clk 0:02:53.6]} 52... Kc7 {[%clk 0:00:12.9]} 53. Kf5 {[%clk 0:02:46.7]}
53... Kd7 {[%clk 0:00:12.8]} 54. Kf6 {[%clk 0:02:37.3]} 54... Rf1+ {[%clk
0:00:12.5]} 55. Kg7 {[%clk 0:02:36.6]} 55... Rf5 {[%clk 0:00:08.6]} 56. Rh7
{[%clk 0:02:32.6]} 56... Ke6 {[%clk 0:00:05.9]} 57. g6 {[%clk 0:02:31.2]} 57...
Rg5 {[%clk 0:00:06.2]} 58. Rh2 {[%clk 0:02:15.9]} 58... Rg1 {[%clk 0:00:03.1]}
59. Rf2 {[%clk 0:02:07.6]} 59... Rh1 {[%clk 0:00:02.9]} 60. Kg8 {[%clk
0:02:01.3]} 60... Ra1 {[%clk 0:00:03.3]} 61. g7 {[%clk 0:02:00.7]} 61... Ke7
{[%clk 0:00:03.6]} 62. Rf5 {[%clk 0:01:59]} 62... Ke6 {[%clk 0:00:04.5]} 63. Rh5
{[%clk 0:01:56.4]} 63... Kf6 {[%clk 0:00:04.9]} 64. Kh8 {[%clk 0:01:54.9]} 1-0

[Event "GrandPrix_29.05"]
[Site "Chess.com"]
[Date "2020.05.29"]
[Round "6"]
[White "Meizon19"]
[Black "Anton_Demchenko"]
[Result "0-1"]
[WhiteElo "2317"]
[BlackElo "2618"]
[TimeControl "600+2"]
[EndTime "12:02:40 PDT"]
[Termination "Anton_Demchenko won by resignation"]

1. e4 {[%clk 0:10:01.9]} 1... e5 {[%clk 0:10:00]} 2. Nf3 {[%clk 0:10:02.4]} 2...
Nc6 {[%clk 0:10:00.9]} 3. Nc3 {[%clk 0:10:03]} 3... Nf6 {[%clk 0:10:00.7]} 4.
Be2 {[%clk 0:10:03.7]} 4... Bd6 {[%clk 0:09:38.2]} 5. O-O {[%clk 0:10:03]} 5...
O-O {[%clk 0:09:38.8]} 6. d3 {[%clk 0:09:59.8]} 6... Re8 {[%clk 0:09:38.8]} 7.
Bg5 {[%clk 0:09:57.5]} 7... h6 {[%clk 0:09:39.6]} 8. Bh4 {[%clk 0:09:33.1]} 8...
Be7 {[%clk 0:09:35.3]} 9. Bg3 {[%clk 0:09:29.4]} 9... d6 {[%clk 0:09:33.1]} 10.
Nd2 {[%clk 0:09:30.2]} 10... Nd4 {[%clk 0:08:53.9]} 11. f4 {[%clk 0:09:01.7]}
11... exf4 {[%clk 0:08:40.5]} 12. Bxf4 {[%clk 0:08:49.7]} 12... Be6 {[%clk
0:08:34.8]} 13. Nf3 {[%clk 0:08:41.8]} 13... Nxe2+ {[%clk 0:08:34.2]} 14. Qxe2
{[%clk 0:08:40.2]} 14... d5 {[%clk 0:08:22.2]} 15. e5 {[%clk 0:08:16]} 15... Nh7
{[%clk 0:08:18.7]} 16. d4 {[%clk 0:08:04.3]} 16... c5 {[%clk 0:08:00.3]} 17.
Rad1 {[%clk 0:07:42.6]} 17... Qd7 {[%clk 0:07:25]} 18. dxc5 {[%clk 0:06:59.5]}
18... Bxc5+ {[%clk 0:07:22.3]} 19. Kh1 {[%clk 0:07:00.5]} 19... Rad8 {[%clk
0:07:11.8]} 20. Ne4 {[%clk 0:05:41.8]} 20... b6 {[%clk 0:05:49.2]} 21. Nd6
{[%clk 0:05:27.7]} 21... Bxd6 {[%clk 0:05:15.2]} 22. exd6 {[%clk 0:05:28.7]}
22... f6 {[%clk 0:05:16.8]} 23. Qd3 {[%clk 0:04:53.7]} 23... Nf8 {[%clk
0:04:59.5]} 24. Nd4 {[%clk 0:04:49.7]} 24... Bf7 {[%clk 0:03:17.4]} 25. Nf5
{[%clk 0:04:36.8]} 25... Ng6 {[%clk 0:03:18.5]} 26. Bxh6 {[%clk 0:03:57.3]}
26... gxh6 {[%clk 0:02:26.4]} 27. Nxh6+ {[%clk 0:03:58.1]} 27... Kh7 {[%clk
0:02:10.5]} 28. Nf5 {[%clk 0:03:58.4]} 28... Re4 {[%clk 0:02:08.4]} 29. Qd2
{[%clk 0:03:41.4]} 29... Kg8 {[%clk 0:01:17.3]} 30. Qh6 {[%clk 0:03:35.1]} 30...
Be8 {[%clk 0:01:18.3]} 31. Rxd5 {[%clk 0:02:26.5]} 31... Qh7 {[%clk 0:01:04.9]}
32. Qd2 {[%clk 0:02:05.3]} 32... Bd7 {[%clk 0:00:28.5]} 33. Qd3 {[%clk
0:01:31.2]} 33... Re5 {[%clk 0:00:18.1]} 34. Rxe5 {[%clk 0:01:07.1]} 34... fxe5
{[%clk 0:00:19.5]} 35. Ne7+ {[%clk 0:00:48.4]} 35... Nxe7 {[%clk 0:00:15.2]} 36.
Qb3+ {[%clk 0:00:21.8]} 36... Kh8 {[%clk 0:00:15.5]} 37. Rf7 {[%clk 0:00:21.2]}
37... Qh5 {[%clk 0:00:08.8]} 38. h3 {[%clk 0:00:17.3]} 38... Ng8 {[%clk
0:00:06.8]} 39. Qd5 {[%clk 0:00:12.2]} 39... Bc6 {[%clk 0:00:06.2]} 40. Qe6
{[%clk 0:00:12.5]} 40... Rxd6 {[%clk 0:00:04.9]} 41. Qxd6 {[%clk 0:00:07.1]}
41... Qxh3+ {[%clk 0:00:06]} 0-1

[Event "GrandPrix_29.05"]
[Site "Chess.com"]
[Date "2020.05.29"]
[Round "6"]
[White "Vnebo"]
[Black "Alex_Krayz"]
[Result "0-1"]
[WhiteElo "1979"]
[BlackElo "2136"]
[TimeControl "600+2"]
[EndTime "12:02:41 PDT"]
[Termination "Alex_Krayz won on time"]

1. e4 {[%clk 0:10:01.9]} 1... e6 {[%clk 0:09:59.7]} 2. d4 {[%clk 0:10:01.9]}
2... d5 {[%clk 0:10:00.5]} 3. Nc3 {[%clk 0:10:00.2]} 3... Bb4 {[%clk 0:10:00.2]}
4. Bd3 {[%clk 0:10:00.6]} 4... Ne7 {[%clk 0:09:52.4]} 5. exd5 {[%clk 0:09:33]}
5... exd5 {[%clk 0:09:47.5]} 6. Ne2 {[%clk 0:09:32.9]} 6... Bf5 {[%clk
0:09:38.4]} 7. O-O {[%clk 0:09:30.5]} 7... O-O {[%clk 0:09:31.9]} 8. Bf4 {[%clk
0:09:13.3]} 8... c6 {[%clk 0:09:16.6]} 9. Ng3 {[%clk 0:08:47.8]} 9... Bxd3
{[%clk 0:09:14.9]} 10. Qxd3 {[%clk 0:08:49.7]} 10... Ng6 {[%clk 0:09:12.3]} 11.
Nce2 {[%clk 0:08:19.8]} 11... Nxf4 {[%clk 0:09:00.7]} 12. Nxf4 {[%clk
0:08:21.7]} 12... Bd6 {[%clk 0:09:00.9]} 13. Qf3 {[%clk 0:08:12.7]} 13... Nd7
{[%clk 0:08:57.1]} 14. Nf5 {[%clk 0:08:06.6]} 14... Nf6 {[%clk 0:08:32.2]} 15.
Rfe1 {[%clk 0:06:41.9]} 15... g6 {[%clk 0:08:21.3]} 16. Nxd6 {[%clk 0:05:48.2]}
16... Qxd6 {[%clk 0:08:19.3]} 17. Nd3 {[%clk 0:05:45.7]} 17... Ne4 {[%clk
0:07:59.6]} 18. Qe3 {[%clk 0:05:33.4]} 18... Rae8 {[%clk 0:07:37.7]} 19. f3
{[%clk 0:05:23.7]} 19... Nf6 {[%clk 0:07:28.7]} 20. Qg5 {[%clk 0:04:03.2]} 20...
Rxe1+ {[%clk 0:06:10.3]} 21. Rxe1 {[%clk 0:04:05.1]} 21... Re8 {[%clk
0:06:11.1]} 22. Re5 {[%clk 0:03:58.2]} 22... Kg7 {[%clk 0:05:04.3]} 23. Qe3
{[%clk 0:03:53.4]} 23... Qd7 {[%clk 0:04:54.1]} 24. Nc5 {[%clk 0:03:50.7]} 24...
Qc8 {[%clk 0:04:47.5]} 25. Rxe8 {[%clk 0:03:29.6]} 25... Nxe8 {[%clk 0:04:44.9]}
26. Qe7 {[%clk 0:02:15]} 26... Nc7 {[%clk 0:03:51.3]} 27. Kf2 {[%clk 0:01:19.3]}
27... Kg8 {[%clk 0:02:59.4]} 28. Nd7 {[%clk 0:01:11.2]} 28... Ne6 {[%clk
0:02:19.1]} 29. Nf6+ {[%clk 0:00:58.7]} 29... Kg7 {[%clk 0:02:10.4]} 30. Ne8+
{[%clk 0:00:59.1]} 30... Kg8 {[%clk 0:02:07.1]} 31. Nd6 {[%clk 0:00:54.4]} 31...
Qf8 {[%clk 0:01:58.3]} 32. Qxf8+ {[%clk 0:00:42.3]} 32... Kxf8 {[%clk
0:01:58.2]} 33. Nxb7 {[%clk 0:00:43]} 33... Nxd4 {[%clk 0:01:57.9]} 34. c3
{[%clk 0:00:42]} 34... Ne6 {[%clk 0:01:48.8]} 35. Na5 {[%clk 0:00:36.5]} 35...
Nd8 {[%clk 0:01:46.3]} 36. c4 {[%clk 0:00:25.1]} 36... Ke7 {[%clk 0:01:35.8]}
37. Ke3 {[%clk 0:00:24.5]} 37... Kd6 {[%clk 0:01:32.8]} 38. cxd5 {[%clk
0:00:24]} 38... cxd5 {[%clk 0:01:29.1]} 39. b4 {[%clk 0:00:23.2]} 39... Ne6
{[%clk 0:01:15.4]} 40. Nb3 {[%clk 0:00:23.8]} 40... Ke5 {[%clk 0:01:11.3]} 41.
g3 {[%clk 0:00:19.3]} 41... g5 {[%clk 0:01:00.5]} 42. Kd3 {[%clk 0:00:17.6]}
42... h5 {[%clk 0:00:41]} 43. a4 {[%clk 0:00:18.6]} 43... h4 {[%clk 0:00:33.5]}
44. b5 {[%clk 0:00:11.4]} 44... Kd6 {[%clk 0:00:26.2]} 45. Nd4 {[%clk
0:00:05.8]} 45... Nc5+ {[%clk 0:00:26.1]} 46. Ke3 {[%clk 0:00:02.2]} 46... hxg3
{[%clk 0:00:26.4]} 0-1

[Event "GrandPrix_29.05"]
[Site "Chess.com"]
[Date "2020.05.29"]
[Round "6"]
[White "tianachess"]
[Black "farhadtahirov"]
[Result "0-1"]
[WhiteElo "2027"]
[BlackElo "1934"]
[TimeControl "600+2"]
[EndTime "12:02:42 PDT"]
[Termination "farhadtahirov won by resignation"]

1. d4 {[%clk 0:09:57.7]} 1... Nf6 {[%clk 0:09:56.6]} 2. Nf3 {[%clk 0:09:57.3]}
2... e6 {[%clk 0:09:56.3]} 3. c4 {[%clk 0:09:56.7]} 3... d5 {[%clk 0:09:56.6]}
4. Nc3 {[%clk 0:09:56.6]} 4... Nbd7 {[%clk 0:09:54.9]} 5. Bg5 {[%clk 0:09:51.4]}
5... Bb4 {[%clk 0:09:55.6]} 6. e3 {[%clk 0:09:50.3]} 6... c5 {[%clk 0:09:52.9]}
7. cxd5 {[%clk 0:09:09.7]} 7... exd5 {[%clk 0:09:45.5]} 8. Be2 {[%clk
0:08:30.9]} 8... Qa5 {[%clk 0:09:28.9]} 9. O-O {[%clk 0:08:16.7]} 9... Bxc3
{[%clk 0:08:55.2]} 10. bxc3 {[%clk 0:08:16]} 10... Ne4 {[%clk 0:08:55.4]} 11. c4
{[%clk 0:08:02.1]} 11... Nc3 {[%clk 0:08:44.4]} 12. Qd2 {[%clk 0:07:53.3]} 12...
Nxe2+ {[%clk 0:08:44.8]} 13. Qxe2 {[%clk 0:07:53.8]} 13... dxc4 {[%clk
0:08:43.9]} 14. Qxc4 {[%clk 0:07:49.7]} 14... cxd4 {[%clk 0:08:41.3]} 15. exd4
{[%clk 0:06:15.1]} 15... O-O {[%clk 0:08:37.3]} 16. Be7 {[%clk 0:04:32.5]} 16...
Re8 {[%clk 0:08:36]} 17. Bb4 {[%clk 0:04:32.5]} 17... Qa4 {[%clk 0:07:50.7]} 18.
Rfe1 {[%clk 0:04:17.8]} 18... Nb6 {[%clk 0:07:44.9]} 19. Rxe8+ {[%clk
0:03:48.7]} 19... Qxe8 {[%clk 0:07:42.8]} 20. Qd3 {[%clk 0:03:46.9]} 20... Qd8
{[%clk 0:03:53.5]} 21. Ba5 {[%clk 0:02:49.7]} 21... Qd5 {[%clk 0:03:50.5]} 22.
Re1 {[%clk 0:02:11.1]} 22... Bf5 {[%clk 0:03:33.9]} 23. Qe2 {[%clk 0:01:52.3]}
23... Be6 {[%clk 0:03:18.1]} 24. Qe5 {[%clk 0:01:29.5]} 24... Qxa2 {[%clk
0:01:57.4]} 25. Bxb6 {[%clk 0:01:17.5]} 25... axb6 {[%clk 0:01:55.9]} 26. Ng5
{[%clk 0:01:14.9]} 26... Qd5 {[%clk 0:01:09.7]} 27. Qf4 {[%clk 0:00:26.2]} 27...
h6 {[%clk 0:01:00.9]} 28. Nxe6 {[%clk 0:00:21.9]} 28... Qxe6 {[%clk 0:00:59.6]}
29. Rd1 {[%clk 0:00:15.2]} 29... Qe2 {[%clk 0:00:56.3]} 30. Rf1 {[%clk
0:00:14.2]} 30... b5 {[%clk 0:00:50.5]} 31. g3 {[%clk 0:00:12.5]} 31... b4
{[%clk 0:00:51]} 32. Qc7 {[%clk 0:00:06.1]} 32... Qb5 {[%clk 0:00:40.2]} 33. Qc5
{[%clk 0:00:03.5]} 33... Qxc5 {[%clk 0:00:23.4]} 34. dxc5 {[%clk 0:00:04.7]}
34... Ra5 {[%clk 0:00:24.7]} 35. Rb1 {[%clk 0:00:05.6]} 35... Rb5 {[%clk
0:00:25.2]} 36. Rb3 {[%clk 0:00:06.7]} 36... Kf8 {[%clk 0:00:25.3]} 37. Kf1
{[%clk 0:00:07.6]} 37... Ke7 {[%clk 0:00:26.7]} 38. Ke2 {[%clk 0:00:08.5]} 38...
Ke6 {[%clk 0:00:28]} 39. Kd3 {[%clk 0:00:09.5]} 39... Kd5 {[%clk 0:00:29.4]} 40.
f4 {[%clk 0:00:08.9]} 40... f5 {[%clk 0:00:29.2]} 41. h3 {[%clk 0:00:09.2]}
41... h5 {[%clk 0:00:29.5]} 42. h4 {[%clk 0:00:09.4]} 42... Kxc5 {[%clk
0:00:27.5]} 43. Ke3 {[%clk 0:00:09]} 43... Kc4 {[%clk 0:00:27.9]} 44. Rb1 {[%clk
0:00:09.9]} 44... b3 {[%clk 0:00:27.9]} 45. Rc1+ {[%clk 0:00:10.8]} 45... Kb4
{[%clk 0:00:28.5]} 46. Kd4 {[%clk 0:00:12]} 46... b2 {[%clk 0:00:28.3]} 47. Rb1
{[%clk 0:00:12.2]} 47... Kb3 {[%clk 0:00:28.8]} 48. Kd3 {[%clk 0:00:11.2]} 48...
Ka2 {[%clk 0:00:29.3]} 0-1

[Event "GrandPrix_29.05"]
[Site "Chess.com"]
[Date "2020.05.29"]
[Round "6"]
[White "Korchmar_Vasiliy"]
[Black "rfhfb"]
[Result "1-0"]
[WhiteElo "2054"]
[BlackElo "2096"]
[TimeControl "600+2"]
[EndTime "12:02:43 PDT"]
[Termination "Korchmar_Vasiliy won by resignation"]

1. d4 {[%clk 0:10:01.9]} 1... Nf6 {[%clk 0:10:00.9]} 2. c4 {[%clk 0:10:02.6]}
2... g6 {[%clk 0:10:01.9]} 3. Nc3 {[%clk 0:10:03.3]} 3... d5 {[%clk 0:10:03.2]}
4. Nf3 {[%clk 0:10:04.2]} 4... Bg7 {[%clk 0:10:04.1]} 5. Bf4 {[%clk 0:10:05.3]}
5... O-O {[%clk 0:10:02.1]} 6. e3 {[%clk 0:10:06.2]} 6... dxc4 {[%clk
0:10:01.8]} 7. Bxc4 {[%clk 0:10:06.5]} 7... c5 {[%clk 0:10:03.4]} 8. dxc5 {[%clk
0:09:57]} 8... Qa5 {[%clk 0:10:02.8]} 9. Rc1 {[%clk 0:09:52.3]} 9... Qxc5 {[%clk
0:10:02.5]} 10. Bb3 {[%clk 0:09:53.1]} 10... Qa5 {[%clk 0:10:02.5]} 11. O-O
{[%clk 0:09:53.3]} 11... Nc6 {[%clk 0:10:02.4]} 12. h3 {[%clk 0:09:53.4]} 12...
Bf5 {[%clk 0:10:03.1]} 13. Qe2 {[%clk 0:09:54]} 13... Ne4 {[%clk 0:10:00.9]} 14.
g4 {[%clk 0:09:54.5]} 14... Nxc3 {[%clk 0:09:10.7]} 15. bxc3 {[%clk 0:09:55.1]}
15... Bd7 {[%clk 0:09:11.7]} 16. Rfd1 {[%clk 0:09:53.9]} 16... Rad8 {[%clk
0:09:10.8]} 17. Rd5 {[%clk 0:09:46.5]} 17... Qb6 {[%clk 0:08:43.1]} 18. c4
{[%clk 0:07:20.4]} 18... Be6 {[%clk 0:07:04.4]} 19. Rb5 {[%clk 0:05:54.5]} 19...
Qa6 {[%clk 0:07:02.4]} 20. Ng5 {[%clk 0:05:55.1]} 20... Bc8 {[%clk 0:06:40.7]}
21. Ne4 {[%clk 0:05:04.1]} 21... Qa3 {[%clk 0:06:31.1]} 22. Rd1 {[%clk
0:04:51.4]} 22... Rxd1+ {[%clk 0:06:17.5]} 23. Qxd1 {[%clk 0:04:53.3]} 23... Rd8
{[%clk 0:06:18.7]} 24. Rd5 {[%clk 0:04:52.4]} 24... Rf8 {[%clk 0:05:20.8]} 25.
Rd3 {[%clk 0:04:11.7]} 25... Qb2 {[%clk 0:03:46.9]} 26. c5 {[%clk 0:04:01.6]}
26... h6 {[%clk 0:02:14.3]} 27. Qf3 {[%clk 0:04:01.2]} 27... Na5 {[%clk
0:01:27.5]} 28. Bd5 {[%clk 0:02:24.1]} 28... e6 {[%clk 0:01:19.1]} 29. Bb3
{[%clk 0:02:25.3]} 29... Nxb3 {[%clk 0:01:19.7]} 30. axb3 {[%clk 0:02:26]} 30...
g5 {[%clk 0:00:57.9]} 31. Bd6 {[%clk 0:02:12.1]} 31... Rd8 {[%clk 0:00:56.3]}
32. Kg2 {[%clk 0:02:13.5]} 32... f5 {[%clk 0:00:47.8]} 33. gxf5 {[%clk
0:02:00.4]} 33... exf5 {[%clk 0:00:45.4]} 34. Ng3 {[%clk 0:02:01.8]} 34... Qf6
{[%clk 0:00:32]} 35. Be5 {[%clk 0:01:27.3]} 35... Qe7 {[%clk 0:00:15.3]} 36.
Rxd8+ {[%clk 0:01:28]} 36... Qxd8 {[%clk 0:00:17.2]} 37. Bxg7 {[%clk 0:01:29.5]}
37... Kxg7 {[%clk 0:00:11]} 38. Nxf5+ {[%clk 0:01:31]} 38... Bxf5 {[%clk
0:00:12.2]} 39. Qxf5 {[%clk 0:01:32.9]} 39... Qc7 {[%clk 0:00:09.9]} 40. b4
{[%clk 0:01:26.1]} 40... a6 {[%clk 0:00:09.7]} 41. e4 {[%clk 0:01:25.8]} 41...
Qc6 {[%clk 0:00:07.5]} 42. Qe5+ {[%clk 0:01:22.5]} 42... Kg6 {[%clk 0:00:06.5]}
43. Qd5 {[%clk 0:01:14.4]} 43... Qb5 {[%clk 0:00:04.3]} 44. Qd4 {[%clk
0:00:56.9]} 44... a5 {[%clk 0:00:04]} 45. bxa5 {[%clk 0:00:56.6]} 45... Qxa5
{[%clk 0:00:05.9]} 46. e5 {[%clk 0:00:58]} 46... Qb5 {[%clk 0:00:03.5]} 47. Qd6+
{[%clk 0:00:54.9]} 47... Kf5 {[%clk 0:00:02.6]} 48. Qf6+ {[%clk 0:00:42.4]}
48... Ke4 {[%clk 0:00:03.7]} 49. e6 {[%clk 0:00:44.3]} 49... Kd5 {[%clk
0:00:03]} 50. e7 {[%clk 0:00:43.6]} 50... Kxc5 {[%clk 0:00:02.3]} 1-0